bitfinex/quotes_ETHUSD_20251031
["timestamp","ask_amount","ask_price","bid_price","bid_amount"]
[1761936117487,8.0,3864.2,3864.1,0.9585]
[1761936118188,8.0,3864.2,3864.1,0.98437924]
[1761936118589,8.0,3864.2,3864.1,4.25668732]
[1761936118785,8.0,3864.2,3864.1,3.57230398]
[1761936119173,8.0,3864.2,3864.1,0.98437924]
[1761936119578,8.0,3864.2,3864.1,3.57230398]
[1761936119787,8.0,3864.2,3864.1,1.64598268]
[1761936120392,10.58785777,3864.2,3864.1,0.007]
[1761936120688,8.0,3864.2,3864.1,0.9585]
[1761936122291,8.0,3864.2,3864.1,3.54642474]
[1761936122602,8.0,3864.2,3864.1,0.9585]
[1761936122907,8.0,3864.2,3864.1,3.97780798]
[1761936123106,8.0,3864.2,3864.1,5.3331213]
[1761936123273,8.0,3864.2,3864.1,5.30724206]
[1761936123604,8.0,3864.2,3864.1,3.95192874]
[1761936123808,8.0,3864.2,3864.1,3.97780798]
[1761936124374,0.001,3864.9,3864.2,0.405504]
[1761936124678,0.001,3864.9,3864.8,4.13573006]
[1761936125083,0.001,3864.9,3864.8,4.62893006]
[1761936125291,0.001,3864.9,3864.8,2.04147405]
[1761936125500,0.001,3864.9,3864.8,0.9515]
[1761936126406,0.001,3864.9,3864.8,0.4583]
[1761936126580,0.001,3864.9,3864.8,0.9515]
[1761936131485,0.001,3864.9,3864.8,3.53895601]
[1761936131697,0.001,3864.9,3864.8,3.56483057]
[1761936131901,0.001,3864.9,3864.8,0.9515]
[1761936132284,0.001,3864.9,3864.8,1.0803]
[1761936132909,0.001,3864.9,3864.8,0.9515]
[1761936133784,0.001,3864.9,3864.8,3.53895601]
[1761936134024,0.001,3864.9,3864.8,3.56483057]
[1761936134412,0.001,3864.9,3864.8,0.97737456]
[1761936134607,0.001,3864.9,3864.8,3.56483057]
[1761936135191,0.001,3864.9,3864.8,4.09913457]
[1761936136017,0.001,3864.9,3864.8,4.07326001]
[1761936136229,0.001,3864.9,3864.8,0.9163]
[1761936137118,0.001,3864.9,3864.8,0.4583]
[1761936137298,0.001,3864.9,3864.8,0.9163]
[1761936137694,0.001,3864.9,3864.8,1.0451]
[1761936137895,0.001,3864.9,3864.8,0.9163]
[1761936140229,0.001,3864.9,3864.8,0.94217456]
[1761936140430,0.001,3864.9,3864.8,3.52963057]
[1761936141512,0.001,3864.9,3864.8,3.93513457]
[1761936141896,0.001,3864.9,3864.8,4.03880273]
[1761936142532,0.001,3864.9,3864.8,4.92509865]
[1761936142834,0.001,3864.9,3864.8,4.01292817]
[1761936142997,0.001,3864.9,3864.8,4.95097321]
[1761936143430,0.001,3864.9,3864.8,1.8799126]
[1761936143729,0.001,3864.9,3864.8,0.9196]
[1761936143931,0.001,3864.9,3864.8,0.94547456]
[1761936144104,0.001,3864.9,3864.8,3.53293057]
[1761936145337,0.001,3864.9,3864.8,0.94547456]
[1761936145513,0.001,3864.9,3864.8,3.53293057]
[1761936146303,0.001,3864.9,3864.8,4.21743105]
[1761936146899,0.001,3864.9,3864.8,0.68450048]
[1761936147106,0.001,3864.9,3864.8,0.4546]
[1761936147305,0.001,3864.9,3864.8,1.60040048]
[1761936147607,0.001,3864.9,3864.8,1.13910048]
[1761936149237,0.001,3864.9,3864.8,3.72655649]
[1761936149814,0.001,3864.9,3864.8,4.21373105]
[1761936150319,0.001,3864.9,3864.8,3.52923057]
[1761936152754,0.001,3864.9,3864.8,0.48047456]
[1761936152951,0.001,3864.9,3864.8,0.02587456]
[1761936153119,0.001,3864.9,3864.7,0.91539925]
[1761936153321,0.001,3864.9,3864.8,0.4546]
[1761936153632,0.001,3864.9,3864.8,4.85013382]
[1761936153827,0.001,3864.9,3864.8,10.40451486]
[1761936154125,0.001,3865.3,3865.2,2.99269224]
[1761936154325,0.001,3865.8,3865.7,2.9923576]
[1761936154552,0.001,3865.8,3865.7,3.47282613]
[1761936154743,0.001,3865.8,3865.7,3.93412613]
[1761936154929,0.001,3865.8,3865.7,4.03776904]
[1761936155753,0.001,3865.8,3865.7,10.37874933]
[1761936155956,0.001,3865.8,3865.7,10.3528808]
[1761936156844,0.001,3865.8,3865.7,12.16136095]
[1761936157162,0.001,3866.2,3866.1,4.39176996]
[1761936157328,0.001,3866.2,3866.1,5.50523581]
[1761936157523,0.001,3866.2,3866.1,5.47936996]
[1761936157718,0.001,3866.2,3866.1,7.30308151]
[1761936158253,0.001,3866.2,3866.1,5.47936996]
[1761936159059,0.001,3866.2,3866.1,7.29953166]
[1761936159267,0.001,3866.2,3866.1,5.47936996]
[1761936159422,0.001,3866.2,3866.1,7.2977125]
[1761936159762,0.001,3866.2,3866.1,5.47936996]
[1761936161946,0.001,3866.4,3866.3,2.99195616]
[1761936162147,0.001,3866.4,3866.3,10.27470097]
[1761936162370,0.001,3866.4,3866.3,10.24883645]
[1761936164163,0.001,3866.4,3866.3,11.24301245]
[1761936164362,0.001,3866.4,3866.3,12.60473136]
[1761936164529,0.001,3866.4,3866.3,11.34663066]
[1761936165259,0.001,3866.4,3866.3,13.11385357]
[1761936165645,0.001,3866.4,3866.3,11.75213466]
[1761936166734,1e-08,3866.8,3866.7,3.4485886]
[1761936166945,0.005,3867.7,3867.6,2.99108679]
[1761936167144,0.005,3867.7,3867.6,3.47384261]
[1761936167373,0.005,3867.7,3867.6,11.52681864]
[1761936167672,0.005,3867.7,3867.6,11.50096282]
[1761936167850,0.005,3867.7,3867.6,10.82115405]
[1761936169173,1e-08,3867.7,3867.6,11.72756574]
[1761936169467,1e-08,3867.7,3867.6,13.58045159]
[1761936169669,1e-08,3867.7,3867.6,12.22083405]
[1761936170677,1e-08,3867.7,3867.6,13.12570034]
[1761936170873,1e-08,3867.7,3867.6,12.22083405]
[1761936172577,1e-08,3867.7,3867.6,10.36365405]
[1761936172780,1e-08,3867.7,3867.6,11.49947478]
[1761936172955,0.00100001,3867.7,3867.6,11.49947478]
[1761936173992,0.00100001,3867.7,3867.6,3.45768679]
[1761936174191,0.00100001,3867.7,3867.6,3.14574261]
[1761936174395,0.00100001,3867.7,3867.6,3.24933694]
[1761936174700,0.00100001,3867.7,3867.6,3.22348112]
[1761936175694,0.00100001,3867.7,3867.6,3.24933694]
[1761936176000,0.00100001,3867.7,3867.6,3.70623694]
[1761936178373,0.00100001,3867.7,3867.6,3.24933694]
[1761936178674,0.00100001,3867.7,3867.6,3.70623694]
[1761936179076,0.00100001,3867.7,3867.6,3.24933694]
[1761936179389,0.00100001,3867.7,3867.6,3.70623694]
[1761936179982,0.00100001,3867.7,3867.6,3.92871913]
[1761936181004,0.00100001,3867.7,3867.6,3.70623694]
[1761936181414,0.00100001,3867.7,3867.6,4.16373694]
[1761936181827,0.00100001,3867.7,3867.6,3.70623694]
[1761936182615,0.001,3868.5,3868.4,2.99055208]
[1761936182791,0.001,3868.5,3868.4,5.30463208]
[1761936183428,0.001,3868.5,3868.4,7.1201767]
[1761936184027,0.003,3869.6,3869.5,2.98981721]
[1761936184228,0.003,3869.6,3869.5,3.01566034]
[1761936184433,0.003,3869.6,3869.5,3.923756]
[1761936185502,1e-08,3869.6,3869.5,3.93006034]
[1761936185736,0.005,3870.7,3870.5,2.58364552]
[1761936186028,0.005,3870.7,3870.5,3.66953992]
[1761936186197,0.005,3870.7,3870.5,2.98914952]
[1761936186690,0.005,3870.7,3870.5,3.47188597]
[1761936186905,0.005,3870.7,3870.5,4.83266678]
[1761936187107,0.005,3870.7,3870.5,3.47188597]
[1761936187335,0.005,3870.7,3870.5,5.28671841]
[1761936187536,0.005,3870.7,3870.6,2.98908277]
[1761936187742,0.005,3870.7,3870.6,4.3462846]
[1761936187924,0.8318,3870.7,3870.5,0.90502763]
[1761936188132,0.1997,3870.6,3869.9,6.44906726]
[1761936188428,0.2013,3870.0,3869.9,6.44906726]
[1761936188626,0.2013,3870.0,3869.5,0.90502763]
[1761936188830,0.357,3869.7,3869.2,3.48951115]
[1761936189033,0.357,3869.7,3869.2,0.90502763]
[1761936189237,0.1981,3869.9,3869.4,0.405504]
[1761936189402,0.1981,3869.9,3869.6,0.405504]
[1761936189604,0.6647,3869.9,3869.6,0.405504]
[1761936189799,0.4535,3869.7,3869.6,0.405504]
[1761936190004,0.4535,3869.7,3869.3,2.98991317]
[1761936190312,0.4535,3869.7,3869.1,9.9386739]
[1761936190313,0.1073,3869.6,3869.5,0.405504]
[1761936190512,0.1073,3869.6,3869.1,9.03361062]
[1761936190714,0.4501,3869.2,3868.7,0.90502763]
[1761936190936,0.1107,3869.1,3868.6,7.35409489]
[1761936191235,0.1107,3869.1,3868.6,9.03396394]
[1761936191435,0.4666,3869.0,3868.6,6.44906726]
[1761936191641,0.5608,3868.7,3868.5,2.58492295]
[1761936191812,0.5608,3868.7,3868.6,2.58491443]
[1761936192212,1.0274,3868.7,3868.6,2.99041843]
[1761936192614,1.0274,3868.7,3868.6,0.1288]
[1761936193326,1.0274,3868.7,3868.2,0.1288]
[1761936193642,0.4666,3868.6,3868.2,0.1288]
[1761936193828,0.4666,3868.6,3868.1,0.005]
[1761936193829,0.4535,3868.3,3868.1,0.005]
[1761936194140,0.1905,3868.2,3868.1,0.005]
[1761936194542,0.6571,3868.2,3868.1,0.005]
[1761936195438,3.24228173,3868.2,3868.1,0.005]
[1761936195803,0.6571,3868.2,3868.1,0.005]
[1761936196454,3.24228173,3868.2,3868.1,0.005]
[1761936197229,0.6571,3868.2,3868.1,0.005]
[1761936198457,1.06264491,3868.2,3868.1,0.005]
[1761936198651,3.64782664,3868.2,3868.1,0.005]
[1761936200932,1.46837076,3868.2,3868.1,0.005]
[1761936201676,1.06282585,3868.2,3868.1,0.005]
[1761936202239,3.64800758,3868.2,3868.1,0.005]
[1761936204934,1.37802585,3868.2,3868.1,0.005]
[1761936205443,3.96320758,3868.2,3868.1,0.005]
[1761936206661,1.37802585,3868.2,3868.1,0.005]
[1761936206953,3.96320758,3868.2,3868.1,0.005]
[1761936209167,7.74532458,3868.2,3868.1,0.005]
[1761936209841,12.78394258,3868.2,3868.1,0.007]
[1761936210042,12.50394258,3868.2,3868.1,0.007]
[1761936210465,11.62360558,3868.2,3868.1,0.007]
[1761936210979,13.00482658,3868.2,3868.1,0.007]
[1761936211366,19.45389384,3868.2,3868.1,0.007]
[1761936211771,11.81195484,3868.2,3868.1,0.007]
[1761936211971,28.06567484,3868.2,3868.1,0.007]
[1761936212854,34.10451584,3868.2,3868.1,0.007]
[1761936213068,33.81219284,3868.2,3868.1,0.007]
[1761936213946,7.47151358,3868.2,3868.1,0.007]
[1761936215112,12.43463558,3868.2,3868.1,0.007]
[1761936215445,6.05650558,3868.2,3868.1,0.007]
[1761936215644,7.17998358,3868.2,3868.1,0.007]
[1761936216242,18.49218258,3868.2,3868.1,0.007]
[1761936216479,18.49218258,3868.2,3867.6,0.002]
[1761936216480,28.93049593,3867.7,3867.6,0.002]
[1761936216684,13.39298093,3867.7,3867.6,0.002]
[1761936216841,12.35285293,3867.7,3867.6,0.002]
[1761936217046,12.75868999,3867.7,3867.6,0.002]
[1761936217277,19.23276299,3867.7,3867.6,0.002]
[1761936217453,9.24248299,3867.7,3867.6,0.002]
[1761936218259,11.76454699,3867.7,3867.6,0.002]
[1761936219189,12.33252999,3867.7,3867.6,0.002]
[1761936219575,11.12411099,3867.7,3867.6,0.002]
[1761936220167,27.06903399,3867.7,3867.6,0.002]
[1761936220501,26.41745899,3867.7,3867.6,0.002]
[1761936221079,19.89460999,3867.7,3867.6,0.002]
[1761936221284,12.44658999,3867.7,3867.6,0.002]
[1761936222369,19.40553999,3867.7,3867.6,0.002]
[1761936222583,19.14647299,3867.7,3867.6,0.002]
[1761936222983,16.03383199,3867.7,3867.6,0.002]
[1761936223214,15.54449599,3867.7,3867.6,0.002]
[1761936223510,13.82651799,3867.7,3867.6,0.002]
[1761936223805,12.58966099,3867.7,3867.6,0.002]
[1761936224106,3.62265299,3867.7,3867.6,0.002]
[1761936224319,3.13015299,3867.7,3867.6,0.002]
[1761936224495,3.62265299,3867.7,3867.6,0.002]
[1761936224970,0.54463706,3867.7,3867.6,0.002]
[1761936225175,3.13015299,3867.7,3867.6,0.002]
[1761936225372,3.62265299,3867.7,3867.6,0.002]
[1761936226103,3.13015299,3867.7,3867.6,0.002]
[1761936226521,3.58365299,3867.7,3867.6,0.002]
[1761936227800,3.98928322,3867.7,3867.6,0.002]
[1761936229039,1.40376729,3867.7,3867.6,0.002]
[1761936229240,0.81146729,3867.7,3867.6,0.002]
[1761936229391,3.39698322,3867.7,3867.6,0.002]
[1761936229590,1.28726729,3867.7,3867.6,0.002]
[1761936229848,0.81146729,3867.7,3867.6,0.002]
[1761936230126,3.39698322,3867.7,3867.6,0.002]
[1761936230289,0.81146729,3867.7,3867.6,0.002]
[1761936230490,3.39698322,3867.7,3867.6,0.002]
[1761936230685,0.81146729,3867.7,3867.6,0.002]
[1761936231122,0.81146729,3867.7,3867.6,0.4972]
[1761936231331,0.81146729,3867.7,3867.6,0.98]
[1761936232525,0.94026729,3867.7,3867.6,3.56558279]
[1761936232830,0.94026729,3867.7,3867.6,3.59143861]
[1761936233393,0.94026729,3867.7,3867.6,3.10863861]
[1761936233624,0.94026729,3867.7,3867.6,3.56558279]
[1761936234653,0.94026729,3867.7,3867.6,0.98]
[1761936234847,0.53463706,3867.7,3867.6,0.98]
[1761936236168,0.53463706,3867.7,3867.6,0.4972]
[1761936237066,0.53463706,3867.7,3867.6,0.002]
[1761936238775,7.75674837,3867.6,3865.9,0.1869]
[1761936238975,7.75674837,3867.6,3865.6,0.002]
[1761936238976,2.5868536,3865.7,3865.6,0.002]
[1761936239174,2.5868536,3865.7,3865.3,1.81819132]
[1761936239175,7.46547737,3865.4,3865.3,0.002]
[1761936239377,7.79057737,3865.4,3865.3,0.002]
[1761936239576,15.70662637,3865.4,3865.3,0.002]
[1761936239980,17.23557837,3865.4,3865.3,0.002]
[1761936240856,5.40086137,3865.4,3865.3,0.002]
[1761936241242,6.53220737,3865.4,3865.3,0.002]
[1761936241653,2.91215437,3865.4,3865.3,0.002]
[1761936242255,3.36565437,3865.4,3865.3,0.002]
[1761936243152,13.93887737,3865.4,3865.3,0.002]
[1761936244091,15.33855737,3865.4,3865.3,0.002]
[1761936244274,23.79726637,3865.4,3865.3,0.002]
[1761936244475,17.59365137,3865.4,3865.3,0.002]
[1761936244681,16.39953037,3865.4,3865.3,0.002]
[1761936244993,0.93514591,3865.7,3865.6,2.58692052]
[1761936244994,0.40591608,3865.7,3865.6,2.58692052]
[1761936245292,0.005,3867.7,3865.6,2.58692052]
[1761936245293,0.005,3867.7,3865.8,0.40591608]
[1761936245507,0.005,3867.7,3866.5,1.39968]
[1761936245787,0.005,3867.7,3866.4,0.405504]
[1761936246092,0.005,3867.7,3867.2,2.58585002]
[1761936246093,0.40561304,3867.5,3867.2,2.58585002]
[1761936246292,0.40561304,3867.5,3867.3,0.02585783]
[1761936246462,0.40561304,3867.5,3867.2,2.58584268]
[1761936246662,0.005,3867.7,3867.0,2.58596551]
[1761936246663,0.005,3867.7,3867.0,0.405504]
[1761936246857,0.005,3867.7,3866.7,2.58616606]
[1761936247066,0.005,3867.7,3865.5,1.40168]
[1761936247268,0.005,3867.7,3865.6,0.4313732]
[1761936247473,0.005,3867.7,3866.8,2.58610574]
[1761936247666,0.005,3867.7,3866.9,0.0258605]
[1761936247974,0.005,3867.7,3866.7,2.58611908]
[1761936248154,0.005,3867.7,3866.8,2.61196618]
[1761936248875,0.1288,3867.0,3866.8,0.02586117]
[1761936249079,0.1288,3867.0,3866.6,2.58624431]
[1761936249390,0.1288,3867.0,3866.6,2.58618733]
[1761936249592,0.1288,3867.0,3866.9,2.58605084]
[1761936251680,0.1288,3867.4,3867.3,2.58578336]
[1761936252295,0.005,3867.7,3867.6,2.99108679]
[1761936252590,0.005,3867.7,3866.6,2.58623653]
[1761936252591,0.005,3867.7,3867.3,2.58578197]
[1761936252796,0.005,3867.7,3866.6,0.02586251]
[1761936252993,0.005,3867.7,3866.7,0.02586184]
[1761936253162,0.005,3867.7,3867.4,2.58570393]
[1761936253362,0.005,3867.7,3865.8,1.805184]
[1761936253595,0.005,3867.7,3867.2,2.58583697]
[1761936253791,0.005,3867.7,3867.3,2.61158059]
[1761936254566,0.005,3867.7,3867.4,2.58570824]
[1761936255073,0.005,3867.7,3867.4,2.58571074]
[1761936255886,0.005,3867.7,3867.3,2.58577643]
[1761936256504,0.4501,3867.4,3865.4,0.188]
[1761936256703,0.4501,3867.2,3865.0,2.58725747]
[1761936256907,0.4501,3867.2,3866.2,2.58650627]
[1761936257204,0.4558,3867.1,3865.5,0.002]
[1761936257573,2.5861314,3866.8,3865.5,2.58897773]
[1761936257877,2.58619567,3866.7,3865.5,2.5889797]
[1761936258070,0.1923,3866.7,3865.6,2.58690087]
[1761936258270,0.4987,3866.6,3865.6,2.58690087]
[1761936259007,0.4987,3866.6,3865.5,2.6148519]
[1761936259505,0.4987,3866.6,3865.5,0.02786987]
[1761936259905,0.4987,3866.6,3865.5,2.61483446]
[1761936260109,0.4987,3866.6,3865.6,2.58689919]
[1761936260310,0.4987,3866.6,3865.6,2.58692052]
[1761936260514,0.4987,3866.6,3865.7,2.58684801]
[1761936261611,0.4987,3866.6,3865.8,2.58677594]
[1761936261988,0.4987,3866.6,3865.5,0.002]
[1761936262202,0.4987,3866.6,3865.6,2.58690035]
[1761936262400,0.4987,3866.6,3865.5,0.002]
[1761936262401,0.4987,3866.6,3865.8,2.58678087]
[1761936262579,0.4987,3866.6,3865.6,2.58691797]
[1761936262580,0.1288,3865.7,3865.6,2.58691797]
[1761936264118,0.40573716,3866.5,3866.4,2.58638526]
[1761936264326,0.1923,3867.9,3867.1,2.58585694]
[1761936264640,0.1923,3867.9,3867.2,0.0258585]
[1761936264811,0.001,3868.1,3867.6,2.58558279]
[1761936267196,0.1923,3867.9,3866.3,5.17290432]
[1761936267393,0.4845,3867.7,3866.6,0.405504]
[1761936267599,0.005,3867.7,3866.6,0.405504]
[1761936267857,0.40555636,3869.0,3868.5,0.405504]
[1761936268009,0.006,3869.7,3869.6,2.58424643]
[1761936268210,0.006,3869.7,3869.6,9.31715671]
[1761936268564,0.006,3869.7,3869.6,10.71683671]
[1761936268847,1e-08,3869.7,3869.6,10.71683671]
[1761936269800,1e-08,3869.7,3869.6,4.38943043]
[1761936270531,1e-08,3869.7,3869.6,4.41527289]
[1761936270700,0.001,3870.1,3870.0,2.98948332]
[1761936271119,0.001,3870.1,3870.0,3.01532311]
[1761936271321,0.001,3870.1,3870.0,4.41500311]
[1761936272255,0.001,3870.1,3870.0,4.38916332]
[1761936272756,0.001,3870.1,3870.0,4.41500311]
[1761936273207,0.001,3870.1,3870.0,4.38916332]
[1761936273404,0.001,3870.1,3870.0,4.41500311]
[1761936273620,0.001,3870.1,3870.0,4.38916332]
[1761936274227,0.001,3870.1,3870.0,4.54380311]
[1761936275365,0.001,3870.1,3870.0,2.58397932]
[1761936275521,0.001,3870.1,3870.0,2.60981911]
[1761936275722,0.001,3870.1,3870.0,2.58397932]
[1761936276026,0.001,3870.1,3870.0,2.60981911]
[1761936276255,0.001,3870.1,3870.0,3.01532311]
[1761936276757,0.001,3870.1,3870.0,2.98948332]
[1761936276934,0.001,3870.1,3870.0,3.01532311]
[1761936281749,0.001,3870.1,3869.1,2.58453294]
[1761936281750,0.4805,3870.1,3868.4,0.90409885]
[1761936282060,0.4805,3870.1,3870.0,2.58397932]
[1761936282061,0.001,3870.1,3870.0,2.58397932]
[1761936282255,0.001,3870.1,3870.0,2.98948332]
[1761936282428,0.001,3870.1,3870.0,3.01532311]
[1761936285244,0.001,3870.1,3870.0,3.14412311]
[1761936285438,0.001,3870.1,3870.0,3.11828332]
[1761936286036,0.001,3870.1,3870.0,3.14412311]
[1761936288477,0.001,3870.1,3870.0,3.11828332]
[1761936289789,0.001,3870.1,3870.0,2.73861911]
[1761936290252,0.001,3870.1,3870.0,3.14412311]
[1761936290454,0.001,3870.1,3870.0,2.71277932]
[1761936290681,0.4711,3870.1,3870.0,2.58397932]
[1761936290845,0.001,3870.1,3870.0,2.58397932]
[1761936291550,0.001,3870.1,3870.0,2.98948332]
[1761936291785,0.001,3870.1,3870.0,3.11828332]
[1761936295183,0.001,3870.1,3870.0,2.71277932]
[1761936295383,0.001,3870.1,3869.8,2.58406339]
[1761936295384,0.9313,3870.1,3869.8,2.58406339]
[1761936295573,0.6575,3869.9,3869.8,2.58406339]
[1761936296005,1.1177,3869.9,3869.8,2.58406339]
[1761936298520,1.1177,3869.9,3869.3,2.58439514]
[1761936298521,0.3572,3868.8,3866.1,0.005]
[1761936298723,0.69767486,3867.3,3866.1,0.005]
[1761936298877,1.37593989,3867.2,3866.1,0.196]
[1761936299082,2.30617304,3867.2,3866.2,0.02586519]
[1761936299319,1.37593989,3867.2,3866.2,0.02586519]
[1761936299775,1.37593989,3867.2,3866.3,2.58642731]
[1761936299977,1.37593989,3867.2,3866.4,0.02586385]
[1761936300175,1.83962928,3867.2,3866.1,0.196]
[1761936300419,2.18732928,3867.2,3866.5,2.58631032]
[1761936300630,2.18732928,3867.2,3866.1,0.196]
[1761936300631,2.18732928,3867.2,3866.1,0.005]
[1761936300922,1.28148939,3867.2,3866.7,2.58612156]
[1761936301081,1.62918939,3867.2,3866.1,0.005]
[1761936301409,4.21503961,3867.2,3866.1,0.005]
[1761936301609,5.46568074,3867.2,3866.1,0.005]
[1761936302028,11.35960525,3867.2,3866.1,0.005]
[1761936302197,23.14777725,3867.2,3866.1,0.005]
[1761936302396,18.41177525,3867.2,3866.1,0.005]
[1761936302598,11.55743325,3867.2,3866.1,0.005]
[1761936302807,5.46301843,3867.2,3866.1,0.005]
[1761936303030,2.18449203,3867.2,3866.1,0.005]
[1761936303245,1.62918939,3867.2,3866.2,2.58646226]
[1761936303410,4.21503961,3867.2,3866.1,0.005]
[1761936304045,4.76828091,3867.2,3866.1,0.005]
[1761936304197,4.21503961,3867.2,3866.1,0.005]
[1761936304814,4.21503961,3867.2,3866.1,2.59158176]
[1761936305017,4.21503961,3867.2,3866.1,0.005]
[1761936305534,10.03568461,3867.2,3866.1,0.005]
[1761936305946,11.98746314,3867.2,3866.1,0.005]
[1761936306549,15.35520014,3867.2,3866.1,0.005]
[1761936307457,15.35520014,3867.2,3867.1,1e-08]
[1761936307748,23.62858806,3866.2,3866.1,0.005]
[1761936307959,11.97338252,3865.6,3865.5,0.002]
[1761936308101,11.97338252,3865.6,3865.1,0.007]
[1761936308102,2.58718824,3865.2,3865.1,0.007]
[1761936308302,5.67605924,3865.2,3865.1,0.007]
[1761936308536,5.85625924,3865.2,3865.1,0.007]
[1761936310106,33.39898824,3865.2,3865.1,0.007]
[1761936310739,7.56595324,3865.2,3865.1,0.007]
[1761936311034,6.95295324,3865.2,3865.1,0.007]
[1761936311348,0.8118,3865.2,3865.1,0.007]
[1761936311510,3.39898824,3865.2,3865.1,0.007]
[1761936312021,6.45729024,3865.2,3865.1,0.007]
[1761936312222,33.39898824,3865.2,3865.1,0.007]
[1761936312438,33.80488964,3865.2,3865.1,0.007]
[1761936312740,35.20456964,3865.2,3865.1,0.007]
[1761936312944,35.20456964,3865.2,3865.1,1e-08]
[1761936313934,23.07503712,3865.0,3864.9,1e-08]
[1761936314105,28.11919312,3865.0,3864.9,1e-08]
[1761936314306,26.98342112,3865.0,3864.9,1e-08]
[1761936314741,12.66974012,3865.0,3864.9,1e-08]
[1761936314940,14.94254212,3865.0,3864.9,1e-08]
[1761936315103,34.55720212,3865.0,3864.9,1e-08]
[1761936315845,34.55720212,3865.0,3863.8,0.002]
[1761936315846,3.98773869,3863.9,3863.8,0.002]
[1761936316011,32.31254471,3863.9,3863.8,0.002]
[1761936316206,24.87910671,3863.9,3863.8,0.002]
[1761936316544,30.09221867,3863.8,3863.7,1e-08]
[1761936317129,34.51190567,3863.8,3863.7,1e-08]
[1761936317569,34.51190567,3863.8,3863.4,0.002]
[1761936317570,3.98800664,3863.5,3863.4,0.002]
[1761936317781,34.33160664,3863.5,3863.4,0.002]
[1761936318087,1.39968,3863.0,3861.3,2.58974866]
[1761936318245,1.39968,3863.0,3861.1,3.06311301]
[1761936318246,4.904079,3862.8,3861.1,3.06311301]
[1761936318583,2.58908365,3862.4,3861.1,0.4732]
[1761936318767,2.5891153,3862.4,3861.3,2.58978694]
[1761936319086,3.06846903,3862.4,3861.1,3.08901893]
[1761936319366,0.3842,3862.2,3861.1,0.49909935]
[1761936319570,0.3842,3862.2,3861.3,2.58978688]
[1761936319928,2.97339786,3862.2,3861.2,2.58985891]
[1761936320127,0.3842,3862.2,3861.1,0.4732]
[1761936320326,0.3842,3862.2,3861.1,3.08902528]
[1761936320543,0.3842,3862.2,3861.4,2.58970921]
[1761936320766,0.3842,3862.2,3861.3,2.58978146]
[1761936320950,0.3842,3862.2,3861.4,2.58972655]
[1761936321172,0.3842,3862.2,3861.1,0.4732]
[1761936321173,1.39968,3862.7,3861.6,2.58958931]
[1761936321492,0.1911,3862.9,3862.1,0.1946]
[1761936321493,1.39968,3862.9,3862.1,0.1946]
[1761936321696,0.68266988,3863.4,3862.1,0.1946]
[1761936321697,1.39968,3862.7,3862.1,0.1946]
[1761936321993,2.5890641,3862.4,3862.1,0.005]
[1761936322177,2.97339786,3862.2,3862.1,0.005]
[1761936322378,3.45189786,3862.2,3862.1,0.005]
[1761936322578,1.39968,3862.6,3862.1,0.005]
[1761936322763,2.97339786,3862.2,3862.1,0.005]
[1761936323250,2.58911216,3862.4,3862.1,0.005]
[1761936323450,2.58918552,3862.3,3862.1,0.005]
[1761936323691,2.58918128,3862.3,3862.1,0.005]
[1761936323863,0.40630131,3862.8,3862.1,0.005]
[1761936324192,2.99510415,3862.8,3862.1,0.005]
[1761936324414,1.39968,3862.6,3862.1,0.005]
[1761936324588,1.94672805,3862.6,3862.1,0.005]
[1761936324886,0.54704805,3862.6,3862.1,0.005]
[1761936325088,0.40630131,3862.8,3862.5,0.4881]
[1761936325297,1.22971793,3863.1,3862.5,0.4881]
[1761936325468,0.54704805,3863.2,3862.5,0.4881]
[1761936325789,2.5884684,3863.3,3862.5,0.4881]
[1761936326084,2.5886535,3863.1,3862.5,0.4881]
[1761936326250,0.54704805,3863.0,3862.5,0.4881]
[1761936326650,2.58853654,3863.2,3862.5,0.9563]
[1761936326651,0.54704805,3863.1,3862.5,0.9563]
[1761936327194,0.68266988,3863.4,3862.6,0.4682]
[1761936327195,0.1288,3862.9,3862.6,0.4682]
[1761936327378,0.54704805,3862.8,3862.6,0.4682]
[1761936327557,0.54704805,3862.7,3862.6,0.873704]
[1761936327971,0.54704805,3862.7,3862.6,1.361804]
[1761936328397,0.54704805,3862.7,3862.6,0.9563]
[1761936328601,0.67584805,3862.7,3862.6,0.9563]
[1761936331199,1.35851793,3862.7,3862.6,0.9563]
[1761936333134,0.67584805,3862.7,3862.6,0.9563]
[1761936333437,1.35851793,3862.7,3862.6,0.9563]
[1761936333642,1.35851793,3862.7,3862.6,0.4881]
[1761936333801,2.58902401,3862.5,3862.1,0.005]
[1761936334133,0.69275878,3862.3,3862.1,0.1946]
[1761936334355,1.23980683,3862.2,3862.1,0.6628]
[1761936334853,1.23980683,3862.2,3862.1,0.6827]
[1761936335004,0.54704805,3862.2,3862.1,0.6847]
[1761936336229,1.24050156,3862.2,3862.1,0.6847]
[1761936337317,1.24050156,3862.2,3862.1,1.558404]
[1761936337318,1.24294092,3862.2,3862.1,1.558404]
[1761936337518,1.37174092,3862.2,3862.1,4.1476689]
[1761936337719,0.54704805,3862.2,3862.1,4.1476689]
[1761936338128,2.58960094,3863.1,3862.2,2.99466845]
[1761936338321,0.55691189,3863.0,3862.3,0.5139913]
[1761936338508,3.14558804,3863.0,3862.3,0.9821913]
[1761936338717,0.55691189,3862.9,3862.3,0.9821913]
[1761936338914,2.58960532,3863.1,3862.3,0.9821913]
[1761936339125,0.55691189,3863.0,3862.4,0.4682]
[1761936339329,0.001,3863.1,3863.0,0.4881]
[1761936339913,0.001,3863.1,3862.6,2.58892146]
[1761936340109,0.001,3863.1,3862.7,0.02588862]
[1761936340445,0.001,3863.1,3862.5,0.02588996]